bitfinex/quotes_SOLUSD_20260305
["timestamp","ask_amount","ask_price","bid_price","bid_amount"]
[1772711061608,7.17446737,91.675,91.653,1.55593246]
[1772711061794,7.17446737,91.674,91.653,1.55593246]
[1772711061995,7.17446737,91.673,91.653,1.55593246]
[1772711062210,7.17446737,91.672,91.653,1.55593246]
[1772711062394,7.17446737,91.671,91.653,1.55593246]
[1772711062596,7.17446737,91.67,91.653,1.55593246]
[1772711062796,7.17446737,91.669,91.654,10.91059855]
[1772711063006,7.17446737,91.668,91.654,10.91059855]
[1772711063208,7.17446737,91.667,91.655,1.55593246]
[1772711063413,7.17446737,91.666,91.655,1.55593246]
[1772711063600,10.90750436,91.68,91.655,1.55593246]
[1772711063804,7.1829902,91.679,91.655,1.55593246]
[1772711064015,7.1829902,91.678,91.655,1.55593246]
[1772711064320,7.1829902,91.677,91.655,1.55593246]
[1772711064613,7.1829902,91.676,91.655,1.55593246]
[1772711064809,7.1829902,91.675,91.656,12.46629293]
[1772711065015,7.1829902,91.674,91.657,1.55593246]
[1772711065212,7.1829902,91.673,91.656,10.91036047]
[1772711065530,7.1829902,91.672,91.656,10.91036047]
[1772711065813,10.90633223,91.69,91.657,1.55593246]
[1772711065994,0.0501987,91.689,91.657,1.55593246]
[1772711067302,0.0501987,91.689,91.659,1.55593246]
[1772711067914,10.90566782,91.696,91.659,1.55593246]
[1772711068607,0.0513948,91.702,91.659,1.55593246]
[1772711068989,0.0513948,91.702,91.661,1.55593246]
[1772711069798,0.05256357,91.699,91.661,1.55593246]
[1772711071813,0.05313791,91.698,91.663,1.55593246]
[1772711073422,0.05313791,91.698,91.665,1.55593246]
[1772711074521,0.05313791,91.698,91.667,1.55593246]
[1772711075621,8.98176987,91.695,91.667,1.55593246]
[1772711077125,19.88760885,91.694,91.668,10.90893223]
[1772711077308,8.98176987,91.692,91.669,1.55593246]
[1772711077622,0.05644804,91.69,91.668,10.90893223]
[1772711077808,0.05644804,91.688,91.655,1.55593246]
[1772711078120,0.05697776,91.686,91.655,1.55593246]
[1772711078322,7.18303428,91.685,91.655,1.55593246]
[1772711078616,8.98176987,91.698,91.655,1.55593246]
[1772711078818,0.0575014,91.699,91.655,1.55593246]
[1772711079027,0.0575014,91.698,91.655,1.55593246]
[1772711079207,0.0575014,91.698,91.657,1.55593246]
[1772711080127,0.05801902,91.697,91.657,1.55593246]
[1772711080430,0.05801902,91.696,91.657,1.55593246]
[1772711081316,0.0585307,91.694,91.658,12.46605487]
[1772711081516,0.0585307,91.694,91.659,1.55593246]
[1772711082631,0.0585307,91.694,91.661,1.55593246]
[1772711085032,10.90524433,91.699,91.662,10.9096463]
[1772711085228,8.98176987,91.694,91.663,1.55593246]
[1772711085436,8.98176987,91.695,91.663,1.55593246]
[1772711086025,8.98176987,91.693,91.663,1.55593246]
[1772711087013,19.88706287,91.699,91.665,1.55593246]
[1772711087333,10.905293,91.699,91.665,1.55593246]
[1772711088216,10.905293,91.699,91.666,10.90917024]
[1772711088536,10.905293,91.699,91.667,1.55593246]
[1772711088733,8.98176987,91.692,91.667,1.55593246]
[1772711089310,10.905293,91.699,91.667,1.55593246]
[1772711089311,8.98176987,91.694,91.667,1.55593246]
[1772711090430,8.98176987,91.694,91.669,1.55593246]
[1772711090734,7.19704416,91.693,91.669,1.55593246]
[1772711090926,7.19704416,91.692,91.669,1.55593246]
[1772711091122,7.19704416,91.691,91.669,1.55593246]
[1772711091326,7.19704416,91.69,91.671,1.55593246]
[1772711091642,7.19704416,91.689,91.671,1.55593246]
[1772711092018,7.19704416,91.688,91.671,1.55593246]
[1772711092218,7.19704416,91.687,91.671,1.55593246]
[1772711092537,8.98176987,91.697,91.67,61.3]
[1772711092538,7.19704416,91.686,91.673,1.55593246]
[1772711092737,0.06423118,91.7,91.673,1.55593246]
[1772711093422,0.06467151,91.698,91.67,61.3]
[1772711093621,0.06467151,91.679,91.651,1.55593246]
[1772711094218,0.06510677,91.689,91.653,1.55593246]
[1772711094420,0.06510677,91.688,91.655,1.55593246]
[1772711095540,0.06510677,91.688,91.654,10.91059855]
[1772711095736,0.06553704,91.679,91.648,10.91124846]
[1772711096624,0.06596237,91.678,91.648,10.91124846]
[1772711096820,8.98176987,91.691,91.649,1.55593246]
[1772711097123,0.06638281,91.699,91.649,1.55593246]
[1772711097725,8.98176987,91.697,91.649,1.55593246]
[1772711098046,0.06679842,91.696,91.649,1.55593246]
[1772711099046,0.06679842,91.696,91.651,1.55593246]
[1772711100132,0.06679842,91.696,91.653,1.55593246]
[1772711101243,8.98176987,91.707,91.655,1.55593246]
[1772711101422,19.88601308,91.708,91.656,1.8402556]
[1772711101629,19.88601308,91.708,91.659,1.55593246]
[1772711102239,0.06841368,91.707,91.661,1.55593246]
[1772711102642,0.06841368,91.699,91.661,1.55593246]
[1772711102824,0.06880596,91.696,91.661,1.55593246]
[1772711103533,0.06880596,91.696,91.602,43.66711592]
[1772711103534,0.06880596,91.689,91.658,10.91007755]
[1772711103841,0.06880596,91.682,91.658,10.91007755]
[1772711104041,8.99236521,91.683,91.652,1.55593246]
[1772711104042,0.06919374,91.679,91.652,1.55593246]
[1772711104542,8.99236521,91.683,91.654,1.55593246]
[1772711104745,7.1933569,91.682,91.654,1.55593246]
[1772711104925,7.1933569,91.681,91.654,1.55593246]
[1772711105242,4.01230494,91.68,91.654,1.4377934]
[1772711105436,19.89865583,91.691,91.654,1.4377934]
[1772711105637,12.34304803,91.691,91.656,1.4377934]
[1772711106048,8.99236521,91.709,91.656,1.72211654]
[1772711106244,1.43675741,91.713,91.656,1.72211654]
[1772711106753,10.9027626,91.72,91.656,1.72211654]
[1772711106754,1.43675741,91.717,91.657,1.72211654]
[1772711107156,1.43675741,91.709,91.657,1.72211654]
[1772711108148,1.43675741,91.708,91.659,1.4377934]
[1772711108653,1.43675741,91.715,91.659,1.4377934]
[1772711108832,8.99236521,91.719,91.659,1.72211654]
[1772711109027,1.43675741,91.72,91.659,1.72211654]
[1772711109451,1.43675741,91.72,91.66,1.72211654]
[1772711110239,1.43675741,91.72,91.662,1.72211654]
[1772711111038,1.43675741,91.718,91.662,1.72211654]
[1772711111833,1.43675741,91.718,91.665,1.4377934]
[1772711112251,1.43675741,91.718,91.664,0.28432314]
[1772711112252,1.43675741,91.718,91.667,1.72211654]
[1772711114759,1.43675741,91.718,91.669,1.4377934]
[1772711117044,1.43675741,91.718,91.671,1.72211654]
[1772711117348,7.17898877,91.717,91.673,1.72211654]
[1772711117544,7.17898877,91.716,91.673,1.72211654]
[1772711117749,7.17898877,91.715,91.673,1.72211654]
[1772711117954,7.17898877,91.714,91.673,1.72211654]
[1772711118255,7.17898877,91.713,91.673,1.72211654]
[1772711118556,1.43675741,91.719,91.674,1.4377934]
[1772711118751,8.99236521,91.745,91.673,0.28432314]
[1772711118947,5.02517672,91.74,91.689,1.55622343]
[1772711119631,10.90001417,91.743,91.689,1.55622343]
[1772711120832,1.45053154,91.74,91.691,1.55622343]
[1772711122153,1.45053154,91.738,91.693,1.55622343]
[1772711122344,1.45053154,91.738,91.692,38.17126902]
[1772711122345,1.45053154,91.744,91.695,1.55622343]
[1772711122550,1.45053154,91.757,91.709,1.55622343]
[1772711123063,1.45053154,91.757,91.719,1.55622343]
[1772711124238,1.45053154,91.757,91.721,1.55622343]
[1772711124436,1.45053154,91.755,91.72,10.90274749]
[1772711124844,1.45053154,91.739,91.711,10.90381742]
[1772711125053,15.92319786,91.76,91.713,1.55622343]
[1772711125367,10.89609483,91.776,91.728,0.28432314]
[1772711125573,10.89609483,91.776,91.729,1.55622343]
[1772711126338,10.89609483,91.776,91.731,1.55622343]
[1772711126949,10.89467032,91.788,91.731,1.55622343]
[1772711127161,0.37539201,91.787,91.731,1.55622343]
[1772711127364,5.02517672,91.78,91.731,1.55622343]
[1772711127559,0.37544628,91.779,91.731,1.55622343]
[1772711128264,0.37544628,91.779,91.73,38.15545622]
[1772711128265,0.37549993,91.778,91.733,1.52604435]
[1772711128967,0.37555296,91.793,91.735,1.52604435]
[1772711129149,10.89419557,91.792,91.749,1.52604435]
[1772711130260,0.2,91.8,91.751,1.52604435]
[1772711130261,0.37560538,91.789,91.751,1.52604435]
[1772711131168,10.89393902,91.795,91.751,1.52604435]
[1772711132272,11.09333845,91.8,91.753,1.52604435]
[1772711132465,11.09333845,91.8,91.757,1.52604435]
[1772711132779,0.37397287,91.799,91.765,1.52604435]
[1772711132961,5.02517672,91.79,91.753,1.52604435]
[1772711133275,0.37317065,91.759,91.693,4.82477569]
[1772711133572,0.37317065,91.759,91.715,1.52604435]
[1772711133876,0.37317065,91.759,91.725,1.52604435]
[1772711134490,11.27060994,91.758,91.726,10.90203431]
[1772711134651,0.37237764,91.757,91.727,1.52604435]
[1772711134953,10.8982323,91.758,91.727,1.52604435]
[1772711136364,0.37081885,91.757,91.727,1.52604435]
[1772711136681,54.47271274,91.79,91.706,0.28432314]
[1772711136682,0.37081885,91.779,91.729,1.52604435]
[1772711137969,0.36929566,91.759,91.728,12.42784096]
[1772711138268,0.36929566,91.759,91.729,1.52604435]
[1772711138959,10.89753817,91.764,91.731,1.52604435]
[1772711139364,10.89753817,91.764,91.697,43.62158328]
[1772711139365,5.01853138,91.74,91.693,3.32563217]
[1772711139554,5.01853138,91.74,91.551,61.3]
[1772711139555,0.14216157,91.735,91.642,1.59315188]
[1772711139756,5.01853138,91.73,91.642,1.59315188]
[1772711140071,5.01853138,91.76,91.657,0.14216157]
[1772711140266,5.01853138,91.76,91.656,1.59315188]
[1772711140267,5.01853138,91.76,91.672,1.59315188]
[1772711140567,5.01853138,91.76,91.658,1.09101224]
[1772711140568,5.01853138,91.79,91.692,1.59315188]
[1772711140755,10.89376363,91.796,91.7,1.59315188]
[1772711140962,5.01853138,91.77,91.712,1.59315188]
[1772711141164,5.01853138,91.79,91.724,1.59315188]
[1772711141347,5.01853138,91.79,91.734,1.59315188]
[1772711141681,10.89376363,91.796,91.744,1.59315188]
[1772711141848,5.01853138,91.79,91.744,1.59315188]
[1772711142491,10.89376363,91.796,91.744,1.59315188]
[1772711142951,10.74606524,91.78,91.744,1.59315188]
[1772711143352,10.74606524,91.78,91.695,4.82477569]
[1772711143353,10.74606524,91.76,91.698,1.59315188]
[1772711143559,10.74606524,91.74,91.698,1.59315188]
[1772711143758,10.74606524,91.73,91.698,1.59315188]
[1772711144392,11.87409712,91.789,91.698,1.59315188]
[1772711144393,10.74606524,91.74,91.698,1.59315188]
[1772711144549,10.74606524,91.75,91.698,1.59315188]
[1772711144753,10.74606524,91.74,91.698,1.59315188]
[1772711144954,10.90048943,91.739,91.7,1.59315188]
[1772711145255,10.74606524,91.75,91.702,1.59315188]
[1772711145561,10.74606524,91.76,91.714,1.59315188]
[1772711146357,10.74606524,91.78,91.725,0.14216157]
[1772711146675,10.74606524,91.78,91.724,1.59315188]
[1772711146676,10.74606524,91.78,91.734,1.59315188]
[1772711147074,10.89811353,91.759,91.712,0.28432314]
[1772711147379,10.89692597,91.769,91.723,1.59315188]
[1772711149174,10.74606524,91.79,91.725,1.87747502]
[1772711149373,21.64049818,91.79,91.725,1.87747502]
[1772711151263,21.64049818,91.79,91.727,1.87747502]
[1772711151761,10.89391845,91.795,91.73,1.87747502]
[1772711151962,7.13879637,91.794,91.735,1.59315188]
[1772711152170,10.89391845,91.795,91.748,0.28432314]
[1772711152480,7.13868309,91.794,91.753,1.59315188]
[1772711152683,7.13868309,91.793,91.753,1.59315188]
[1772711152982,7.13868309,91.792,91.753,1.59315188]
[1772711153162,10.89348351,91.798,91.755,1.59315188]
[1772711153362,7.14461306,91.797,91.755,1.59315188]
[1772711153566,7.14461306,91.796,91.755,1.59315188]
[1772711153759,7.14461306,91.795,91.755,1.59315188]
[1772711153964,7.14461306,91.794,91.755,1.59315188]
[1772711154181,10.89419557,91.792,91.756,10.89846985]
[1772711154370,7.14461306,91.791,91.757,1.59315188]
[1772711156483,0.2,91.8,91.24,184.9282516]
[1772711156484,0.2,91.8,91.763,1.59315188]
[1772711156684,11.09332863,91.8,91.763,1.59315188]
[1772711156894,7.15985781,91.799,91.763,1.59315188]
[1772711157192,7.15985781,91.798,91.745,1.59315188]
[1772711157488,7.15985781,91.797,91.753,1.59315188]
[1772711157694,7.15985781,91.796,91.753,1.59315188]
[1772711157879,7.15985781,91.795,91.753,1.59315188]
[1772711158080,7.15985781,91.794,91.753,1.59315188]
[1772711158287,7.15985781,91.793,91.753,1.59315188]
[1772711158590,7.15985781,91.792,91.755,1.59315188]
[1772711158772,7.15985781,91.791,91.755,1.59315188]
[1772711158972,7.15985781,91.79,91.755,1.59315188]
[1772711159174,10.89348351,91.798,91.755,1.59315188]
[1772711159475,7.16440428,91.797,91.755,1.59315188]
[1772711159675,7.16440428,91.796,91.755,1.59315188]
[1772711159870,10.74606524,91.79,91.755,1.59315188]
[1772711160071,7.16440428,91.789,91.755,1.59315188]
[1772711160275,10.74606524,91.78,91.746,1.59315188]
[1772711160489,18.06014944,91.779,91.748,1.59315188]
[1772711160793,0.2,91.8,91.748,1.59315188]
[1772711160794,10.89455163,91.789,91.748,1.59315188]
[1772711160999,10.74606524,91.79,91.752,1.59315188]
[1772711161183,1.54372662,91.779,91.732,10.90120327]
[1772711161374,1.54372662,91.769,91.732,10.90120327]
[1772711161578,1.54372662,91.769,91.733,0.28432314]
[1772711161892,1.54372662,91.769,91.732,10.90120327]
[1772711162093,7.1658887,91.768,91.732,10.90120327]
[1772711162292,1.54372662,91.759,91.729,61.3]
[1772711162596,1.54372662,91.759,91.713,27.25879906]
[1772711162597,1.54372662,91.755,91.704,99.46627409]
[1772711162796,8.70961532,91.754,91.705,61.3]
[1772711162974,7.1658887,91.753,91.705,61.3]
[1772711163291,8.70961532,91.752,91.713,1.56900182]
[1772711163500,7.1658887,91.751,91.715,1.56900182]
[1772711163688,7.1658887,91.75,91.715,1.56900182]
[1772711163890,7.1658887,91.749,91.717,1.56900182]
[1772711164084,1.54372662,91.775,91.723,1.56900182]
[1772711164390,10.89656975,91.772,91.734,1.56900182]
[1772711164575,7.16633902,91.771,91.734,1.56900182]
[1772711164980,7.16633902,91.77,91.738,1.56900182]
[1772711165191,10.8956545,91.78,91.744,1.56900182]
[1772711165381,7.16948155,91.779,91.744,1.56900182]
[1772711165605,1.54372662,91.784,91.746,1.56900182]
[1772711165606,10.89597611,91.777,91.746,1.56900182]
[1772711165891,1.54372662,91.784,91.746,1.56900182]
[1772711166096,0.2,91.8,91.748,1.56900182]
[1772711166297,0.2,91.8,91.764,1.56900182]
[1772711166298,1.54372662,91.799,91.764,1.56900182]
[1772711166707,1.54372662,91.799,91.746,1.85332496]
[1772711166999,1.54372662,91.779,91.733,1.56900182]
[1772711167173,1.54372662,91.779,91.734,1.56900182]
[1772711167376,1.54372662,91.789,91.736,1.56900182]
[1772711167590,10.89467032,91.788,91.742,1.56900182]
[1772711167796,10.89467032,91.788,91.737,38.4368679]
[1772711167797,0.2,91.8,91.744,1.56900182]
[1772711168002,0.2,91.8,91.755,0.14216157]
[1772711168191,0.2,91.8,91.764,1.56900182]
[1772711168983,10.89336485,91.799,91.764,1.56900182]
[1772711169298,11.09331766,91.8,91.764,1.56900182]
[1772711169500,11.09331766,91.8,91.765,10.89740096]
[1772711169709,11.09331766,91.8,91.766,1.56900182]
[1772711170183,11.09331766,91.8,91.765,10.89740096]
[1772711170184,1.54372662,91.799,91.765,10.89740096]
[1772711171597,1.54372662,91.799,91.767,38.14007213]
[1772711171838,0.2,91.8,91.768,1.56900182]
[1772711172223,0.2,91.8,91.77,1.56900182]
[1772711172378,10.89122929,91.817,91.773,0.28432314]
[1772711172578,1.54372662,91.816,91.774,1.56900182]
[1772711174103,1.54372662,91.816,91.779,0.28432314]
[1772711174303,1.54372662,91.816,91.781,1.56900182]
[1772711174476,1.54372662,91.816,91.783,1.56900182]
[1772711174905,0.2,91.82,91.783,1.56900182]
[1772711176093,0.2,91.82,91.785,1.56900182]
[1772711176704,1.54372662,91.799,91.753,11.18314933]
[1772711177004,1.54372662,91.799,91.755,0.28432314]
[1772711177200,1.54372662,91.799,91.755,1.85332496]
[1772711177499,1.54372662,91.818,91.755,1.85332496]
[1772711178093,1.54372662,91.815,91.757,1.85332496]
[1772711179407,10.74606524,91.8,91.757,1.85332496]
[1772711179610,1.5579973,91.798,91.757,0.28432314]
[1772711180307,1.5579973,91.798,91.748,1.45316129]
[1772711180308,1.5579973,91.796,91.759,0.28432314]
[1772711181289,1.5579973,91.796,91.76,1.45316129]
[1772711182199,1.5579973,91.819,91.762,1.73748443]
[1772711182402,1.5579973,91.817,91.764,1.73748443]
[1772711182711,0.2,91.82,91.767,1.73748443]
[1772711183200,1.5579973,91.819,91.767,1.73748443]
[1772711183406,0.2,91.82,91.771,3.69383402]
[1772711183609,0.2,91.82,91.773,1.45316129]
[1772711183909,0.2,91.83,91.779,1.45316129]
[1772711184085,0.2,91.83,91.782,1.73748443]
[1772711184290,0.2,91.84,91.807,1.45316129]
[1772711185198,0.2,91.84,91.795,0.14216157]
[1772711185199,1.5579973,91.846,91.808,1.45316129]
[1772711185399,1.5579973,91.849,91.808,1.45316129]
[1772711185801,1.5579973,91.848,91.797,0.14216157]
[1772711186003,1.5579973,91.846,91.797,0.14216157]
[1772711186184,10.94606524,91.85,91.797,0.14216157]
[1772711186185,1.5579973,91.844,91.797,1.59532286]
[1772711186383,1.5579973,91.844,91.799,1.59532286]
[1772711186597,10.88814607,91.843,91.801,1.59532286]
[1772711186795,1.5579973,91.842,91.803,1.59532286]
[1772711187008,10.88814607,91.843,91.803,1.59532286]
[1772711187009,1.5579973,91.839,91.803,0.14216157]
[1772711187205,1.5579973,91.837,91.803,0.14216157]
[1772711189215,1.5579973,91.837,91.803,1.72433385]
[1772711189595,1.5579973,91.837,91.804,98.12053882]
[1772711189910,1.50913136,91.835,91.804,96.53836654]
[1772711190411,1.50913136,91.846,91.806,1.58217228]
[1772711190993,1.50913136,91.849,91.809,0.28432314]
[1772711191192,1.50913136,91.847,91.81,0.14216157]
[1772711191502,11.08733926,91.85,91.808,0.28432314]
[1772711191503,1.50913136,91.845,91.808,0.28432314]
[1772711191699,1.50913136,91.839,91.808,10.89229696]
[1772711192222,10.74606524,91.84,91.808,10.89229696]
[1772711192223,1.50913136,91.837,91.808,10.89229696]
[1772711192896,1.50913136,91.829,91.805,58.4136661]
[1772711193102,1.50913136,91.827,91.805,58.4136661]
[1772711193299,1.50913136,91.827,91.805,69.3062147]
[1772711193504,1.50913136,91.843,91.806,1.58217228]
[1772711193708,10.88802752,91.844,91.806,1.58217228]
[1772711193709,1.50913136,91.841,91.807,10.89241561]
[1772711193906,1.50913136,91.841,91.807,38.12345463]
[1772711195000,1.50913136,91.841,91.808,1.58217228]
[1772711195392,1.70913136,91.85,91.812,1.58217228]
[1772711195603,1.70913136,91.85,91.813,58.4136661]
[1772711195920,1.70913136,91.85,91.814,1.58217228]
[1772711196216,1.50913136,91.848,91.814,1.58217228]
[1772711196607,1.50913136,91.848,91.813,58.4136661]
[1772711196818,1.50913136,91.846,91.813,58.4136661]
[1772711197016,1.50913136,91.844,91.813,58.4136661]
[1772711197217,1.50913136,91.842,91.814,10.89158516]
[1772711197519,1.50913136,91.842,91.814,38.12054806]
[1772711198703,1.50913136,91.842,91.815,58.4136661]
[1772711199418,1.50913136,91.842,91.816,10.89134791]
[1772711201102,1.50913136,91.841,91.816,10.89134791]
[1772711201299,1.50913136,91.839,91.815,58.07319459]
[1772711201600,1.50913136,91.837,91.813,58.07319459]
[1772711202934,1.50913136,91.835,91.813,58.07319459]
[1772711203104,1.50913136,91.835,91.814,10.89158516]
[1772711204822,0.2,91.85,91.815,1.58217228]
[1772711205023,10.88743481,91.849,91.816,10.89134791]
[1772711206107,7.15157525,91.848,91.816,10.89134791]
[1772711206302,10.88743481,91.849,91.816,10.89134791]
[1772711206303,7.15157525,91.847,91.816,12.47352019]
[1772711206508,10.88743481,91.849,91.816,12.47352019]
[1772711206814,1.50913136,91.847,91.817,1.58217228]
[1772711207014,1.50913136,91.847,91.819,1.58217228]
[1772711207713,1.50913136,91.847,91.82,58.07319459]
[1772711208109,1.70913136,91.86,91.826,1.58217228]
[1772711208314,7.1711833,91.859,91.834,1.58217228]
[1772711208520,1.70913136,91.86,91.834,1.58217228]
[1772711208831,7.17219145,91.859,91.834,1.58217228]
[1772711209020,1.53847252,91.859,91.822,58.07319459]
[1772711209351,1.53847252,91.857,91.823,10.89051762]
[1772711209529,1.53847252,91.855,91.823,10.89051762]
[1772711209710,1.53847252,91.853,91.823,10.89051762]
[1772711209911,1.53847252,91.851,91.823,10.89051762]
[1772711210227,1.53847252,91.849,91.823,10.89051762]
[1772711210435,1.53847252,91.847,91.821,10.89069622]
[1772711210611,1.53847252,91.845,91.811,10.89194105]
[1772711210810,1.53847252,91.843,91.811,12.42364259]
[1772711211023,1.53847252,91.843,91.812,1.53170154]
[1772711211333,18.06821006,91.842,91.812,1.53170154]
[1772711211637,1.53847252,91.841,91.812,1.53170154]
[1772711212334,1.53847252,91.839,91.812,1.53170154]
[1772711213528,1.53847252,91.837,91.813,10.89170378]
[1772711215540,1.53847252,91.837,91.814,1.53170154]
[1772711216130,1.53847252,91.837,91.815,10.89146653]
[1772711216323,1.53847252,91.837,91.816,1.53170154]
[1772711216637,10.88804937,91.844,91.818,1.53170154]
[1772711216868,10.88748646,91.849,91.819,1.53170154]
[1772711217051,1.53847252,91.847,91.821,1.53170154]
[1772711217345,1.53847252,91.845,91.82,58.07319459]
[1772711217518,1.53847252,91.843,91.82,58.07319459]
[1772711217719,1.53847252,91.841,91.82,58.07319459]
[1772711217923,8.73318683,91.84,91.821,58.07319459]
[1772711218120,7.19471431,91.839,91.821,58.07319459]
[1772711218641,1.53847252,91.838,91.821,68.96386479]
[1772711219825,12.42721138,91.838,91.821,58.07319459]
[1772711220040,1.53847252,91.836,91.812,58.07319459]
[1772711220217,1.53847252,91.834,91.812,58.07319459]
[1772711220419,1.53847252,91.832,91.812,58.07319459]
[1772711220629,1.53847252,91.83,91.813,10.89170378]
[1772711220839,1.53847252,91.837,91.813,10.89170378]
[1772711221057,27.21673323,91.856,91.813,10.89170378]
[1772711221058,12.42628723,91.846,91.814,1.53170154]
[1772711221255,8.73512484,91.845,91.814,1.53170154]
[1772711221447,7.19665232,91.844,91.814,1.53170154]
[1772711221652,7.19665232,91.843,91.814,1.53170154]
[1772711221953,7.19665232,91.842,91.814,1.53170154]
[1772711222131,10.88624957,91.859,91.817,0.28432314]
[1772711222331,7.20210007,91.858,91.824,1.53170154]
[1772711222529,7.20210007,91.857,91.824,1.53170154]
[1772711222727,7.20210007,91.856,91.826,1.53170154]
[1772711222928,7.20210007,91.855,91.826,1.53170154]
[1772711223145,1.53847252,91.859,91.826,1.53170154]
[1772711223330,7.20404114,91.858,91.826,1.53170154]
[1772711223654,7.20404114,91.857,91.826,1.53170154]
[1772711223953,0.2,91.86,91.826,1.53170154]
[1772711223954,7.20404114,91.856,91.826,1.53170154]
[1772711224158,0.2,91.86,91.826,1.53170154]
[1772711224446,7.20431815,91.859,91.826,1.53170154]
[1772711224649,7.20431815,91.858,91.826,1.53170154]
[1772711224846,7.20431815,91.857,91.828,1.53170154]
[1772711225044,7.20431815,91.856,91.828,1.53170154]
[1772711225230,7.21263477,91.855,91.828,1.53170154]
[1772711225434,0.2,91.86,91.828,1.53170154]
[1772711225636,7.21326205,91.859,91.828,1.53170154]
[1772711225835,7.21326205,91.858,91.828,1.53170154]
[1772711226034,7.21326205,91.857,91.828,1.53170154]
[1772711226227,7.21326205,91.856,91.828,1.53170154]
[1772711226529,7.21326205,91.855,91.83,1.53170154]
[1772711226735,7.21744009,91.854,91.836,1.53170154]
[1772711227049,0.2,91.86,91.836,1.53170154]
[1772711227351,7.21657141,91.859,91.836,1.53170154]
[1772711227556,7.21657141,91.858,91.836,1.53170154]
[1772711227733,7.21657141,91.857,91.836,1.53170154]
[1772711227931,7.21657141,91.856,91.836,1.53170154]
[1772711228151,7.21657141,91.855,91.836,1.53170154]
[1772711228341,7.22044231,91.854,91.836,1.53170154]
[1772711228547,0.2,91.86,91.836,1.53170154]
[1772711228733,7.22043066,91.859,91.836,1.53170154]
[1772711228935,7.22043066,91.858,91.838,1.53170154]
[1772711229146,7.22043066,91.857,91.838,1.53170154]
[1772711229339,0.2,91.86,91.838,1.53170154]
[1772711229340,7.22043066,91.856,91.838,1.53170154]
[1772711229535,7.22043066,91.855,91.838,1.53170154]
[1772711229847,0.2,91.86,91.838,1.53170154]
[1772711230234,0.2,91.86,91.84,1.53170154]
[1772711230831,1.53847252,91.858,91.839,58.07319459]
[1772711231153,1.53847252,91.856,91.839,68.96172628]
[1772711231553,0.2,91.86,91.84,1.53170154]
[1772711232861,0.2,91.86,91.842,1.53170154]
[1772711233728,10.88407282,91.878,91.842,1.53170154]
[1772711233943,7.21708957,91.877,91.844,1.53170154]
[1772711234145,7.21708957,91.876,91.844,1.53170154]
[1772711234352,7.21708957,91.875,91.844,1.53170154]
[1772711234543,7.21708957,91.874,91.844,1.53170154]
[1772711234758,7.21708957,91.873,91.844,1.53170154]
[1772711234951,1.53847252,91.883,91.846,1.53170154]
[1772711235153,1.53847252,91.883,91.845,38.10768141]
[1772711235154,7.21560552,91.882,91.85,1.53170154]
[1772711235356,7.21560552,91.881,91.854,1.53170154]
[1772711235648,1.53847252,91.892,91.859,0.14216157]
[1772711235856,7.21341632,91.891,91.864,1.53170154]
[1772711236029,1.53847252,91.889,91.848,1.53170154]
[1772711236234,1.53847252,91.887,91.854,1.53170154]
[1772711236435,1.53847252,91.885,91.854,1.53170154]
[1772711236946,1.53847252,91.895,91.856,1.53170154]
[1772711237148,10.88193345,91.896,91.856,1.53170154]
[1772711237149,1.53847252,91.893,91.856,1.53170154]
[1772711237334,1.53847252,91.891,91.856,1.53170154]
[1772711237534,1.53847252,91.889,91.856,1.53170154]
[1772711237935,1.53847252,91.887,91.856,1.53170154]
[1772711238344,1.53847252,91.887,91.858,1.53170154]
[1772711238537,1.53847252,91.887,91.864,1.53170154]
[1772711238948,1.53847252,91.887,91.856,10.88660512]
[1772711239146,1.54662141,91.885,91.856,10.88660512]
[1772711239458,1.54662141,91.883,91.856,10.88660512]
[1772711239659,1.54662141,91.881,91.856,10.88660512]
[1772711239860,1.54662141,91.879,91.856,10.88660512]
[1772711240154,7.19746643,91.878,91.857,1.54611358]
[1772711240356,1.54662141,91.89,91.857,1.54611358]
[1772711240531,1.54662141,91.888,91.857,1.54611358]
[1772711240736,1.54662141,91.888,91.856,10.88660512]
[1772711240938,1.54662141,91.886,91.856,10.88660512]
[1772711241234,10.73100328,91.89,91.846,27.21918428]
[1772711241235,1.54662141,91.883,91.846,27.21918428]
[1772711241430,1.54662141,91.881,91.846,27.21918428]
[1772711241654,1.54662141,91.879,91.846,27.21918428]
[1772711241850,1.54662141,91.879,91.846,28.76529786]
[1772711242044,1.54662141,91.888,91.847,1.54611358]
[1772711242252,1.54662141,91.886,91.847,1.54611358]
[1772711242553,1.54662141,91.879,91.846,27.21918428]
[1772711242859,1.54662141,91.869,91.844,10.88802752]
[1772711243054,10.88518308,91.868,91.818,0.14216157]
[1772711243236,1.54662141,91.866,91.823,1.54611358]
[1772711243435,1.54662141,91.864,91.823,1.54611358]
[1772711243638,1.54662141,91.859,91.823,1.54611358]
[1772711245138,1.54662141,91.859,91.825,1.54611358]
[1772711246151,1.54662141,91.859,91.827,1.54611358]
[1772711248561,1.54662141,91.859,91.829,1.53412862]
[1772711249364,8.62471532,91.858,91.829,1.53412862]
[1772711249540,1.43215067,91.858,91.829,1.53412862]
[1772711249736,1.43215067,91.858,91.831,1.53412862]